fUSD/lending_fUSD_20240521
["ID","MTS","AMOUNT","RATE_DAILY","PERIOD"]
[327616815,1716253850489,-1496.02,0.0003863,6]
[327616816,1716253850499,-500.0,0.0003863,6]
[327616817,1716253850508,-500.0,0.0003863,6]
[327616818,1716253850519,-500.0,0.0003863,6]
[327616819,1716253850528,-913.46,0.0003863,6]
[327616820,1716253850538,-500.0,0.0003863,6]
[327616821,1716253850547,-662.89,0.0003863,6]
[327616822,1716253850557,-500.0,0.0003863,6]
[327616823,1716253850566,-940.01,0.0003863,6]
[327616824,1716253850576,-1011.32,0.0003863,6]
[327616825,1716253850585,-500.0,0.0003863,6]
[327616826,1716253850595,-872.0,0.0003863,6]
[327616827,1716253850604,-938.12,0.0003863,6]
[327616828,1716253850613,-635.83,0.0003863,6]
[327616829,1716253850623,-500.0,0.0003863,6]
[327616830,1716253850633,-500.0,0.0003863,6]
[327616831,1716253850643,-879.24,0.0003863,6]
[327616832,1716253850652,-500.0,0.0003863,6]
[327616833,1716253850662,-1903.66,0.0003863,6]
[327616834,1716253850675,-500.0,0.0003863,6]
[327616835,1716253850685,-821.19,0.0003863,6]
[327616836,1716253850695,-1569.82,0.0003863,6]
[327616837,1716253850709,-500.0,0.0003863,6]
[327616838,1716253850719,-1123.26,0.0003863,6]
[327616839,1716253850728,-1224.82,0.0003863,6]
[327616840,1716253850738,-500.0,0.0003863,6]
[327616841,1716253850750,-150.0,0.0003863,6]
[327616842,1716253850760,-992.53,0.0003863,6]
[327616843,1716253850770,-785.45,0.0003863,6]
[327616844,1716253850779,-984.64,0.0003863,6]
[327616845,1716253850791,-1072.18,0.0003863,6]
[327616846,1716253850800,-500.0,0.0003863,6]
[327616847,1716253850810,-500.0,0.0003863,6]
[327616848,1716253850820,-1442.98,0.0003863,6]
[327616849,1716253850830,-718.51,0.0003863,6]
[327616850,1716253850839,-500.0,0.0003863,6]
[327616851,1716253850850,-1307.29,0.0003863,6]
[327616852,1716253850860,-500.0,0.0003863,6]
[327616853,1716253850870,-637.93,0.0003863,6]
[327616854,1716253850880,-1236.67,0.0003863,6]
[327616855,1716253850889,-596.26,0.0003863,6]
[327616856,1716253850898,-500.0,0.0003863,6]
[327616857,1716253850908,-961.55,0.0003863,6]
[327616858,1716253850920,-500.0,0.0003863,6]
[327616859,1716253850930,-1528.43,0.0003863,6]
[327616860,1716253850940,-2000.21,0.0003863,6]
[327616861,1716253850950,-2220.28,0.0003863,6]
[327616862,1716253850960,-831.9,0.0003863,6]
[327616863,1716253850970,-500.0,0.0003863,6]
[327616864,1716253850980,-500.0,0.0003863,6]
[327616865,1716253850990,-500.0,0.0003863,6]
[327616866,1716253851000,-1063.58,0.0003863,6]
[327616867,1716253851010,-566.57,0.0003863,6]
[327616868,1716253851020,-631.21,0.0003863,6]
[327616869,1716253851029,-839.51,0.0003863,6]
[327616870,1716253851038,-1772.05,0.0003863,6]
[327616871,1716253851226,-500.0,0.0003863,6]
[327616872,1716253851249,-965.68,0.0003863,6]
[327616873,1716253851259,-602.68,0.0003863,6]
[327616874,1716253851268,-500.0,0.0003863,6]
[327616875,1716253851279,-921.58,0.0003863,6]
[327616876,1716253851289,-1394.51,0.0003863,6]
[327616877,1716253851298,-500.0,0.0003863,6]
[327616878,1716253851308,-1162.17,0.0003863,6]
[327616879,1716253851317,-614.28,0.0003863,6]
[327616880,1716253851327,-500.0,0.0003863,6]
[327616881,1716253851336,-1060.71,0.0003863,6]
[327616882,1716253851346,-500.0,0.0003863,6]
[327616883,1716253851355,-323.37003128,0.0003863,6]
[327616884,1716253851365,-528.37,0.0003863,6]
[327616885,1716253851375,-500.0,0.0003863,6]
[327616886,1716253851384,-500.0,0.0003863,6]
[327616887,1716253851394,-500.0,0.0003863,6]
[327616888,1716253851403,-1165.48,0.0003863,6]
[327616889,1716253851413,-700.85,0.0003863,6]
[327616890,1716253851424,-500.0,0.0003863,6]
[327616891,1716253851434,-2925.39,0.0003863,6]
[327616892,1716253851444,-500.0,0.0003863,6]
[327616893,1716253851453,-1023.61,0.0003863,6]
[327616894,1716253851464,-500.0,0.0003863,6]
[327616895,1716253851472,-1192.72,0.0003863,6]
[327616896,1716253851482,-1322.43,0.0003863,6]
[327616897,1716253851492,-542.94,0.0003863,6]
[327616898,1716253851501,-500.0,0.0003863,6]
[327616899,1716253851511,-500.0,0.0003863,6]
[327616900,1716253851521,-500.0,0.0003863,6]
[327616901,1716253851530,-1406.7,0.0003863,6]
[327616902,1716253851540,-683.34,0.0003863,6]
[327616903,1716253851550,-1895.45,0.0003863,6]
[327616904,1716253851561,-1170.56,0.0003863,6]
[327616905,1716253851571,-500.0,0.0003863,6]
[327616906,1716253851581,-500.0,0.0003863,6]
[327616907,1716253851591,-500.0,0.0003863,6]
[327616908,1716253851601,-500.0,0.0003863,6]
[327616909,1716253851611,-1440.84,0.0003863,6]
[327616910,1716253851621,-500.0,0.0003863,6]
[327616911,1716253851631,-500.0,0.0003863,6]
[327616912,1716253851640,-1246.71,0.0003863,6]
[327616913,1716253851650,-500.0,0.0003863,6]
[327616914,1716253851660,-2282.68,0.0003863,6]
[327616915,1716253851670,-500.0,0.0003863,6]
[327616916,1716253851680,-1145.65,0.0003863,6]
[327616917,1716253851690,-1032.78,0.0003863,6]
[327616918,1716253851700,-500.0,0.0003863,6]
[327616919,1716253851709,-500.0,0.0003863,6]
[327616920,1716253851721,-500.0,0.0003863,6]
[327616921,1716253851732,-1016.96,0.0003863,6]
[327616922,1716253851742,-1116.95,0.0003863,6]
[327616923,1716253851752,-500.0,0.0003863,6]
[327616924,1716253851763,-1090.03,0.0003863,6]
[327616925,1716253851773,-1315.47,0.0003863,6]
[327616926,1716253851782,-2113.96,0.0003863,6]
[327616927,1716253851792,-692.72,0.0003863,6]
[327616928,1716253851805,-500.0,0.0003863,6]
[327616929,1716253851815,-687.02,0.0003863,6]
[327616930,1716253851824,-1662.51,0.0003863,6]
[327616931,1716253851834,-551.08,0.0003863,6]
[327616932,1716253851844,-500.0,0.0003863,6]
[327616933,1716253851853,-600.87,0.0003863,6]
[327616934,1716253851863,-1171.02,0.0003863,6]
[327616935,1716253851872,-500.0,0.0003863,6]
[327616936,1716253851882,-1221.16,0.0003863,6]
[327616937,1716253851893,-500.0,0.0003863,6]
[327616938,1716253851902,-2379.73,0.0003863,6]
[327616939,1716253851912,-1623.43,0.0003863,6]
[327616940,1716253851922,-543.23,0.0003863,6]
[327616941,1716253851931,-500.0,0.0003863,6]
[327616942,1716253851941,-995.54,0.0003863,6]
[327616943,1716253851951,-1358.58,0.0003863,6]
[327616944,1716253851960,-1184.4,0.0003863,6]
[327616945,1716253851970,-1058.26,0.0003863,6]
[327616946,1716253851980,-668.51,0.0003863,6]
[327616947,1716253851989,-1155.28,0.0003863,6]
[327616948,1716253851998,-500.0,0.0003863,6]
[327616949,1716253852008,-1390.14,0.0003863,6]
[327616950,1716253852018,-300.0,0.0003863,6]
[327616951,1716253852028,-500.0,0.0003863,6]
[327616952,1716253852037,-529.08,0.0003863,6]
[327616953,1716253852047,-1522.62,0.0003863,6]
[327616954,1716253852057,-2002.78,0.0003863,6]
[327616955,1716253852066,-500.0,0.0003863,6]
[327616956,1716253852076,-1218.08,0.0003863,6]
[327616957,1716253852085,-660.52,0.0003863,6]
[327616958,1716253852096,-544.66,0.0003863,6]
[327616959,1716253852105,-1879.14,0.0003863,6]
[327616960,1716253852115,-804.63,0.0003863,6]
[327616961,1716253852124,-500.0,0.0003863,6]
[327616962,1716253852133,-500.0,0.0003863,6]
[327616963,1716253852143,-1151.64,0.0003863,6]
[327616964,1716253852152,-870.65,0.0003863,6]
[327616965,1716253852161,-500.0,0.0003863,6]
[327616966,1716253852173,-500.0,0.0003863,6]
[327616967,1716253852183,-1154.11,0.0003863,6]
[327616968,1716253852192,-581.48912227,0.0003863,6]
[327616969,1716253852201,-500.0,0.0003863,6]
[327616970,1716253852211,-500.0,0.0003863,6]
[327616971,1716253852221,-500.0,0.0003863,6]
[327616972,1716253852230,-797.88,0.0003863,6]
[327616973,1716253852239,-2506.85,0.0003863,6]
[327616974,1716253852249,-1171.98,0.0003863,6]
[327616975,1716253852258,-2091.8,0.0003863,6]
[327616976,1716253852268,-500.0,0.0003863,6]
[327616977,1716253852277,-3207.94,0.0003863,6]
[327616978,1716253852287,-500.0,0.0003863,6]
[327616979,1716253852297,-862.69,0.0003863,6]
[327616980,1716253852307,-969.54,0.0003863,6]
[327616981,1716253852316,-500.0,0.0003863,6]
[327616982,1716253852325,-821.44,0.0003863,6]
[327616983,1716253852335,-500.0,0.0003863,6]
[327616984,1716253852344,-1077.51,0.0003863,6]
[327616985,1716253852353,-837.96,0.0003863,6]
[327616986,1716253852363,-1046.16,0.0003863,6]
[327616987,1716253852371,-500.0,0.0003863,6]
[327616988,1716253852381,-500.0,0.0003863,6]
[327616989,1716253852390,-997.41,0.0003863,6]
[327616990,1716253852399,-500.0,0.0003863,6]
[327616991,1716253852409,-1260.3,0.0003863,6]
[327616992,1716253852420,-500.0,0.0003863,6]
[327616993,1716253852429,-3518.67,0.0003863,6]
[327616994,1716253852439,-820.42,0.0003863,6]
[327616995,1716253852448,-1004.59,0.0003863,6]
[327616996,1716253852458,-1158.6,0.0003863,6]
[327616997,1716253852468,-681.29,0.0003863,6]
[327616998,1716253852478,-3042.77,0.0003863,6]
[327616999,1716253852487,-647.74,0.0003863,6]
[327617000,1716253852496,-500.0,0.0003863,6]
[327617001,1716253852506,-5346.33,0.0003863,6]
[327617002,1716253852516,-943.14,0.0003863,6]
[327617003,1716253852526,-1121.25,0.0003863,6]
[327617004,1716253852535,-515.21,0.0003863,6]
[327617005,1716253852545,-500.0,0.0003863,6]
[327617006,1716253852555,-658.73,0.0003863,6]
[327617007,1716253852564,-1237.07,0.0003863,6]
[327617008,1716253852574,-990.67,0.0003863,6]
[327617009,1716253852584,-19167.87,0.0003863,6]
[327617010,1716253852593,-500.0,0.0003863,6]
[327617011,1716253852603,-3079.47,0.0003863,6]
[327617012,1716253852612,-1616.35,0.0003863,6]
[327617013,1716253852621,-2748.26,0.0003863,6]
[327617014,1716253852631,-500.0,0.0003863,6]
[327617015,1716253852640,-1763.02,0.0003863,6]
[327617016,1716253852649,-2177.92,0.0003863,6]
[327617017,1716253852659,-595.62,0.0003863,6]
[327617018,1716253852669,-950.94,0.0003863,6]
[327617019,1716253852678,-1947.64,0.0003863,6]
[327617020,1716253852688,-1016.17,0.0003863,6]
[327617021,1716253852698,-558.05,0.0003863,6]
[327617022,1716253852714,-1519.78,0.0003863,6]
[327617023,1716253852723,-692.08,0.0003863,6]
[327617024,1716253852734,-1272.37,0.0003863,6]
[327617025,1716253852744,-1273.89,0.0003863,6]
[327617026,1716253852755,-1897.49,0.0003863,6]
[327617027,1716253852765,-3762.51,0.0003863,6]
[327617028,1716253852774,-1205.13,0.0003863,6]
[327617029,1716253852784,-217.04037377,0.0003863,6]
[327617030,1716253852793,-509.33,0.0003863,6]
[327617031,1716253852804,-1822.24,0.0003863,6]
[327617032,1716253852814,-2425.85,0.0003863,6]
[327617033,1716253852824,-2685.34,0.0003863,6]
[327617034,1716253852833,-2728.24,0.0003863,6]
[327617035,1716253852843,-500.0,0.0003863,6]
[327617036,1716253852853,-1303.77,0.0003863,6]
[327617037,1716253852862,-500.0,0.0003863,6]
[327617038,1716253852872,-2884.63,0.0003863,6]
[327617039,1716253852882,-500.0,0.0003863,6]
[327617040,1716253852893,-1228.16,0.0003863,6]
[327617041,1716253852902,-1321.1,0.0003863,6]
[327617042,1716253852912,-1240.84,0.0003863,6]
[327617043,1716253852922,-500.0,0.0003863,6]
[327617044,1716253852932,-500.0,0.0003863,6]
[327617045,1716253852941,-843.58,0.0003863,6]
[327617046,1716253852951,-500.0,0.0003863,6]
[327617047,1716253852961,-500.0,0.0003863,6]
[327617048,1716253852971,-2577.26,0.0003863,6]
[327617049,1716253852981,-1671.16,0.0003863,6]
[327617050,1716253852991,-500.0,0.0003863,6]
[327617051,1716253853000,-500.0,0.0003863,6]
[327617052,1716253853010,-1265.93,0.0003863,6]
[327617053,1716253853020,-2135.44,0.0003863,6]
[327617054,1716253853030,-500.0,0.0003863,6]
[327617055,1716253853039,-30907.2,0.0003863,6]
[327617056,1716253853049,-1090.89,0.0003863,6]
[327617057,1716253853058,-500.0,0.0003863,6]
[327617058,1716253853068,-2536.19,0.0003863,6]
[327617059,1716253853078,-635.53,0.0003863,6]
[327617060,1716253853088,-500.0,0.0003863,6]
[327617061,1716253853098,-2749.19,0.0003863,6]
[327617062,1716253853108,-7102.47,0.0003863,6]
[327617063,1716253853118,-3076.91,0.0003863,6]
[327617064,1716253853128,-3153.1,0.0003863,6]
[327617065,1716253853138,-500.0,0.0003863,6]
[327617066,1716253853148,-500.0,0.0003863,6]
[327617067,1716253853158,-1940.06,0.0003863,6]
[327617068,1716253853168,-1804.08,0.0003863,6]
[327617069,1716253853179,-500.0,0.0003863,6]
[327617070,1716253853190,-500.0,0.0003863,6]
[327617071,1716253853199,-4804.5,0.0003863,6]
[327617072,1716253853209,-500.0,0.0003863,6]
[327617073,1716253853219,-500.0,0.0003863,6]
[327617074,1716253853230,-500.0,0.0003863,6]
[327617075,1716253853239,-1667.94,0.0003863,6]
[327617076,1716253853248,-7125.24,0.0003863,6]
[327617077,1716253853258,-1757.85,0.0003863,6]
[327617078,1716253853267,-899.09,0.0003863,6]
[327617079,1716253853278,-1904.37,0.0003863,6]
[327617080,1716253853287,-500.0,0.0003863,6]
[327617081,1716253853297,-500.0,0.0003863,6]
[327617082,1716253853306,-1884.29,0.0003863,6]
[327617083,1716253853315,-1044.57,0.0003863,6]
[327617084,1716253853325,-500.0,0.0003863,6]
[327617085,1716253853334,-500.0,0.0003863,6]
[327617086,1716253853344,-500.0,0.0003863,6]
[327617087,1716253853353,-1614.24,0.0003863,6]
[327617088,1716253853363,-5073.66,0.0003863,6]
[327617089,1716253853372,-13398.81,0.0003863,6]
[327617090,1716253853381,-860.18,0.0003863,6]
[327617091,1716253853391,-500.0,0.0003863,6]
[327617092,1716253853401,-366.06519202,0.0003863,6]
[327617093,1716253853410,-500.0,0.0003863,6]
[327617094,1716253853420,-13097.45,0.0003863,6]
[327617095,1716253853430,-500.0,0.0003863,6]
[327617096,1716253853440,-500.0,0.0003863,6]
[327617097,1716253853450,-1645.47,0.0003863,6]
[327617098,1716253853459,-836.34,0.0003863,6]
[327617099,1716253853469,-500.0,0.0003863,6]
[327617100,1716253853479,-620.45,0.0003863,6]
[327617101,1716253853488,-500.0,0.0003863,6]
[327617102,1716253853498,-584.96,0.0003863,6]
[327617103,1716253853508,-500.0,0.0003863,6]
[327617104,1716253853517,-1148.01,0.0003863,6]
[327617105,1716253853527,-5763.12,0.0003863,6]
[327617106,1716253853537,-500.0,0.0003863,6]
[327617107,1716253853546,-500.0,0.0003863,6]
[327617108,1716253853556,-1241.4,0.0003863,6]
[327617109,1716253853566,-739.28,0.0003863,6]
[327617110,1716253853575,-500.0,0.0003863,6]
[327617111,1716253853585,-2921.96,0.0003863,6]
[327617112,1716253853595,-500.0,0.0003863,6]
[327617113,1716253853604,-843.18,0.0003863,6]
[327617114,1716253853614,-1534.44,0.0003863,6]
[327617115,1716253853624,-693.69,0.0003863,6]
[327617116,1716253853634,-1313.48,0.0003863,6]
[327617117,1716253853644,-3596.19,0.0003863,6]
[327617118,1716253853653,-2730.97,0.0003863,6]
[327617119,1716253853663,-890.37,0.0003863,6]
[327617120,1716253853674,-2677.12,0.0003863,6]
[327617121,1716253853748,-1304.15,0.0003863,6]
[327617122,1716253853757,-500.0,0.0003863,6]
[327617123,1716253853767,-500.0,0.0003863,6]
[327617124,1716253853777,-1923.38,0.0003863,6]
[327617125,1716253853786,-500.0,0.0003863,6]
[327617126,1716253853802,-1167.65,0.0003863,6]
[327617127,1716253853812,-862.27,0.0003863,6]
[327617128,1716253853822,-5360.27,0.0003863,6]
[327617129,1716253853832,-500.0,0.0003863,6]
[327617130,1716253853843,-513.94836026,0.0003863,6]
[327617131,1716253853852,-1200.58,0.0003863,6]
[327617132,1716253853862,-689.47,0.0003863,6]
[327617133,1716253853872,-4396.94,0.0003863,6]
[327617134,1716253853881,-1207.05,0.0003863,6]
[327617135,1716253853892,-1613.36,0.0003863,6]
[327617136,1716253853901,-545.15,0.0003863,6]
[327617137,1716253853910,-1381.45,0.0003863,6]
[327617138,1716253853920,-1658.87,0.0003863,6]
[327617139,1716253853930,-2769.83,0.0003863,6]
[327617140,1716253853939,-878.44,0.0003863,6]
[327617141,1716253853948,-500.0,0.0003863,6]
[327617142,1716253853958,-500.0,0.0003863,6]
[327617143,1716253853968,-527.88,0.0003863,6]
[327617144,1716253853977,-2070.86,0.0003863,6]
[327617145,1716253853986,-2078.18,0.0003863,6]
[327617146,1716253853996,-1184.33,0.0003863,6]
[327617147,1716253854006,-794.8,0.0003863,6]
[327617148,1716253854015,-2137.07,0.0003863,6]
[327617149,1716253854026,-1103.78,0.0003863,6]
[327617150,1716253854035,-3564.04,0.0003863,6]
[327617151,1716253854045,-809.14,0.0003863,6]
[327617152,1716253854054,-583.75,0.0003863,6]
[327617153,1716253854063,-500.0,0.0003863,6]
[327617154,1716253854073,-19757.08,0.0003863,6]
[327617155,1716253854082,-500.0,0.0003863,6]
[327617156,1716253854092,-3127.95,0.0003863,6]
[327617157,1716253854101,-833.97,0.0003863,6]
[327617158,1716253854111,-1428.46,0.0003863,6]
[327617159,1716253854120,-656.27,0.0003863,6]
[327617160,1716253854130,-1958.86,0.0003863,6]
[327617161,1716253854139,-30586.79,0.0003863,6]
[327617162,1716253854148,-840.24,0.0003863,6]
[327617163,1716253854158,-1663.25,0.0003863,6]
[327617164,1716253854167,-2333.5,0.0003863,6]
[327617165,1716253854179,-3208.72,0.0003863,6]
[327617166,1716253854189,-1950.27,0.0003863,6]
[327617167,1716253854198,-2160.15,0.0003863,6]
[327617168,1716253854208,-500.0,0.0003863,6]
[327617169,1716253854218,-1298.52,0.0003863,6]
[327617170,1716253854227,-500.0,0.0003863,6]
[327617171,1716253854237,-3257.34,0.0003863,6]
[327617172,1716253854246,-1951.3,0.0003863,6]
[327617173,1716253854256,-755.14,0.0003863,6]
[327617174,1716253854265,-1746.08,0.0003863,6]
[327617175,1716253854274,-836.3,0.0003863,6]
[327617176,1716253854284,-959.35,0.0003863,6]
[327617177,1716253854293,-570.65418415,0.0003863,6]
[327617178,1716253854303,-1939.65,0.0003863,6]
[327617179,1716253854312,-844.11,0.0003863,30]
[327617180,1716253854322,-500.0,0.0003863,6]
[327617181,1716253854331,-1631.5,0.0003863,6]
[327617182,1716253854340,-3216.03,0.0003863,6]
[327617183,1716253854350,-500.0,0.0003863,6]
[327617184,1716253854360,-1798.04,0.0003863,6]
[327617185,1716253854369,-2075.97,0.0003863,6]
[327617186,1716253854379,-14528.74,0.0003863,6]
[327617187,1716253854389,-500.0,0.0003863,6]
[327617188,1716253854399,-500.0,0.0003863,6]
[327617189,1716253854408,-2949.33,0.0003863,6]
[327617190,1716253854418,-500.0,0.0003863,6]
[327617191,1716253854430,-1836.05,0.0003863,6]
[327617192,1716253854440,-1176.66,0.0003863,6]
[327617193,1716253854449,-1215.2,0.0003863,6]
[327617194,1716253854459,-911.21,0.0003863,6]
[327617195,1716253854469,-1206.31,0.0003863,6]
[327617196,1716253854479,-2549.52,0.0003863,6]
[327617197,1716253854488,-500.0,0.0003863,6]
[327617198,1716253854498,-1271.11,0.0003863,6]
[327617199,1716253854507,-1963.2,0.0003863,6]
[327617200,1716253854517,-1287.76,0.0003863,6]
[327617201,1716253854526,-500.0,0.0003863,6]
[327617202,1716253854536,-787.41,0.0003863,6]
[327617203,1716253854545,-2041.37,0.0003863,6]
[327617204,1716253854556,-4727.93,0.0003863,6]
[327617205,1716253854565,-500.0,0.0003863,6]
[327617206,1716253854575,-725.76,0.0003863,6]
[327617207,1716253854585,-500.0,0.0003863,6]
[327617208,1716253854594,-940.25,0.0003863,6]
[327617209,1716253854604,-500.0,0.0003863,6]
[327617210,1716253854613,-11207.82,0.0003863,6]
[327617211,1716253854622,-500.0,0.0003863,6]
[327617212,1716253854632,-3429.14,0.0003863,6]
[327617213,1716253854641,-1310.86,0.0003863,6]
[327617214,1716253854650,-7702.29,0.0003863,6]
[327617215,1716253854660,-500.0,0.0003863,6]
[327617216,1716253854670,-1652.48,0.0003863,6]
[327617217,1716253854679,-1102.4,0.0003863,6]
[327617218,1716253854689,-2767.81,0.0003863,6]
[327617219,1716253854699,-500.0,0.0003863,6]
[327617220,1716253854713,-1593.28,0.0003863,6]
[327617221,1716253854723,-1498.6,0.0003863,6]
[327617222,1716253854732,-711.06,0.0003863,6]
[327617223,1716253854741,-1615.49,0.0003863,6]
[327617224,1716253854752,-927.41,0.0003863,6]
[327617225,1716253854762,-577.62,0.0003863,6]
[327617226,1716253854771,-500.0,0.0003863,6]
[327617227,1716253854780,-1922.15,0.0003863,6]
[327617228,1716253854792,-1369.43,0.0003863,6]
[327617229,1716253854801,-500.0,0.0003863,6]
[327617230,1716253854811,-500.0,0.0003863,6]
[327617231,1716253854820,-2072.22,0.0003863,6]
[327617232,1716253854830,-1578.87,0.0003863,6]
[327617233,1716253854840,-500.0,0.0003863,6]
[327617234,1716253854849,-500.0,0.0003863,6]
[327617235,1716253854859,-500.0,0.0003863,6]
[327617236,1716253854869,-926.58,0.0003863,6]
[327617237,1716253854878,-1795.59,0.0003863,6]
[327617238,1716253854888,-519.07,0.0003863,6]
[327617239,1716253854898,-1413.58,0.0003863,6]
[327617240,1716253854908,-10796.43,0.0003863,6]
[327617241,1716253854918,-5964.25,0.0003863,6]
[327617242,1716253854930,-1046.79,0.0003863,6]
[327617243,1716253854940,-947.81,0.0003863,6]
[327617244,1716253854950,-3101.42,0.0003863,6]
[327617245,1716253854960,-2071.94,0.0003863,6]
[327617246,1716253854969,-500.0,0.0003863,6]
[327617247,1716253854978,-1958.94,0.0003863,6]
[327617248,1716253854988,-1534.32,0.0003863,6]
[327617249,1716253855000,-7168.9,0.0003863,6]
[327617250,1716253855012,-507.11,0.0003863,6]
[327617251,1716253855022,-500.36,0.0003863,6]
[327617252,1716253855033,-3927.07,0.0003863,6]
[327617253,1716253855043,-6760.48,0.0003863,6]
[327617254,1716253855053,-1415.86,0.0003863,6]
[327617255,1716253855064,-736.01,0.0003863,6]
[327617256,1716253855074,-500.0,0.0003863,6]
[327617257,1716253855084,-1044.3,0.0003863,6]
[327617258,1716253855094,-1483.85,0.0003863,6]
[327617259,1716253855105,-5484.04,0.0003863,6]
[327617260,1716253855114,-633.44,0.0003863,6]
[327617261,1716253855124,-1061.32,0.0003863,6]
[327617262,1716253855134,-5038.42,0.0003863,6]
[327617263,1716253855143,-2978.24,0.0003863,6]
[327617264,1716253855152,-500.0,0.0003863,6]
[327617265,1716253855162,-13697.24,0.0003863,6]
[327617266,1716253855174,-1523.96,0.0003863,6]
[327617267,1716253855184,-3532.36,0.0003863,6]
[327617268,1716253855193,-691.31,0.0003863,6]
[327617269,1716253855202,-811.02,0.0003863,6]
[327617270,1716253855211,-3073.33,0.0003863,6]
[327617271,1716253855220,-926.06,0.0003863,6]
[327617272,1716253855229,-1044.81,0.0003863,6]
[327617273,1716253855238,-1455.14,0.0003863,6]
[327617274,1716253855248,-2047.81,0.0003863,6]
[327617275,1716253855257,-3188.64,0.0003863,6]
[327617276,1716253855266,-500.0,0.0003863,6]
[327617277,1716253855276,-1592.91,0.0003863,6]
[327617278,1716253855286,-933.81,0.0003863,6]
[327617279,1716253855295,-3031.97,0.0003863,6]
[327617280,1716253855305,-1207.33,0.0003863,6]
[327617281,1716253855315,-500.0,0.0003863,6]
[327617282,1716253855324,-500.0,0.0003863,6]
[327617283,1716253855334,-500.0,0.0003863,6]
[327617284,1716253855343,-3116.99,0.0003863,6]
[327617285,1716253855353,-1175.8,0.0003863,6]
[327617286,1716253855363,-3434.1,0.0003863,6]
[327617287,1716253855372,-1027.67,0.0003863,6]
[327617288,1716253855382,-4452.68,0.0003863,6]
[327617289,1716253855392,-500.0,0.0003863,6]
[327617290,1716253855402,-500.0,0.0003863,6]
[327617291,1716253855411,-528.80880136,0.0003863,6]
[327617292,1716253855424,-500.0,0.0003863,6]
[327617293,1716253855433,-1088.9,0.0003863,6]
[327617294,1716253855443,-744.7,0.0003863,6]
[327617295,1716253855453,-773.26,0.0003863,6]
[327617296,1716253855463,-1288.19,0.0003863,6]
[327617297,1716253855472,-3557.39,0.0003863,6]
[327617298,1716253855481,-669.1,0.0003863,6]
[327617299,1716253855491,-5220.31,0.0003863,6]
[327617300,1716253855501,-1801.55,0.0003863,6]
[327617301,1716253855510,-4125.68,0.0003863,6]
[327617302,1716253855520,-962.5,0.0003863,6]
[327617303,1716253855530,-7676.63,0.0003863,6]
[327617304,1716253855540,-4012.45,0.0003863,6]
[327617305,1716253855549,-1702.18,0.0003863,6]
[327617306,1716253855558,-1505.78,0.0003863,6]
[327617307,1716253855568,-2623.88,0.0003863,6]
[327617308,1716253855577,-1129.33,0.0003863,6]
[327617309,1716253855587,-3225.41,0.0003863,6]
[327617310,1716253855596,-1990.39,0.0003863,6]
[327617311,1716253855605,-7840.8,0.0003863,6]
[327617312,1716253855615,-1500.91,0.0003863,6]
[327617313,1716253855624,-1890.61,0.0003863,6]
[327617314,1716253855633,-758.99,0.0003863,6]